bitfinex/quotes_SOLUSD_20241126
["timestamp","ask_amount","ask_price","bid_price","bid_amount"]
[1732620676280,44.56948807,223.16,223.13,0.5352434]
[1732620676669,5.0,223.15,223.13,0.5352434]
[1732620676873,44.56948807,223.14,223.13,0.5352434]
[1732620677073,68.34637207,223.14,223.13,0.5352434]
[1732620677291,73.34637207,223.14,223.13,0.5352434]
[1732620677518,44.56948807,223.14,223.13,0.5352434]
[1732620677874,78.34637207,223.14,223.13,0.5352434]
[1732620678198,78.34637207,223.14,223.0,46.56948807]
[1732620678199,5.0,223.11,223.0,2.0]
[1732620678495,23.776884,223.04,223.0,2.0]
[1732620678702,44.56948807,223.03,223.0,0.5]
[1732620678876,5.0,223.02,223.0,0.5]
[1732620679076,68.34637207,223.01,223.0,0.5]
[1732620679386,44.56948807,223.01,223.0,0.5]
[1732620680906,78.34637207,223.01,223.0,0.5]
[1732620681089,49.56948807,223.01,223.0,0.5]
[1732620681281,44.56948807,223.01,223.0,0.5]
[1732620681508,68.34637207,223.01,223.0,0.5]
[1732620681812,44.56948807,223.06,223.0,0.5]
[1732620682195,44.56948807,223.07,223.01,4.4841]
[1732620682388,44.56948807,223.06,223.0,0.5]
[1732620682589,4.4808,223.17,223.0,0.5]
[1732620682590,44.56948807,223.01,223.0,0.5]
[1732620683311,54.05358807,223.01,223.0,0.5]
[1732620683486,44.56948807,223.01,223.0,0.5]
[1732620683689,49.56948807,223.01,223.0,0.5]
[1732620683888,73.34637207,223.01,223.0,0.5]
[1732620684089,78.34637207,223.01,223.0,0.5]
[1732620684355,5.0,222.97,222.9,0.5352434]
[1732620684522,44.56948807,222.91,222.9,0.5352434]
[1732620685408,49.56948807,222.91,222.9,0.5352434]
[1732620685591,73.34637207,222.91,222.9,0.5352434]
[1732620685790,78.34637207,222.91,222.9,0.5352434]
[1732620685994,78.34637207,222.91,222.86,1.2775974]
[1732620685995,10.0,222.87,222.86,1.2775974]
[1732620686189,94.13897614,222.87,222.86,1.2775974]
[1732620686489,122.91586014,222.87,222.86,1.2775974]
[1732620686689,122.91586014,222.87,222.74,1.0]
[1732620686690,23.776884,222.86,222.74,1.0]
[1732620686890,44.56948807,222.76,222.74,1.0]
[1732620687092,4.4859,222.92,222.74,5.4894]
[1732620687314,5.0,222.91,222.74,5.4894]
[1732620687525,10.0,222.87,222.74,1.0]
[1732620687829,5.0,222.76,222.74,1.0]
[1732620688190,49.56948807,222.75,222.74,1.0]
[1732620688393,44.56948807,222.75,222.74,1.0]
[1732620688608,112.91586014,222.75,222.74,1.0]
[1732620688820,44.56948807,222.75,222.74,1.0]
[1732620689425,94.13897614,222.75,222.74,1.0]
[1732620689721,89.13897614,222.75,222.74,1.0]
[1732620690090,44.56948807,222.75,222.74,1.0]
[1732620690392,22.4367,222.85,222.74,1.0]
[1732620690393,44.56948807,222.77,222.74,1.0]
[1732620690594,44.56948807,222.75,222.74,1.0]
[1732620690898,49.56948807,222.75,222.74,1.0]
[1732620691119,98.62827614,222.75,222.74,1.0]
[1732620691298,89.13897614,222.75,222.74,1.0]
[1732620691500,94.13897614,222.75,222.74,1.0]
[1732620691709,112.91586014,222.75,222.74,1.0]
[1732620692016,44.56948807,222.75,222.74,1.0]
[1732620692228,44.56948807,222.83,222.74,1.0]
[1732620692514,44.56948807,222.77,222.74,1.0]
[1732620692718,44.56948807,222.75,222.74,1.0]
[1732620692897,54.56948807,222.75,222.74,1.0]
[1732620693101,5.0,222.7,222.68,0.5352434]
[1732620693314,44.56948807,222.69,222.68,0.5352434]
[1732620693813,54.56948807,222.69,222.68,0.5352434]
[1732620694225,54.56948807,222.69,222.63,27.55681818]
[1732620694226,5.0,222.64,222.63,27.55681818]
[1732620694412,5.0,222.71,222.63,27.55681818]
[1732620694619,44.56948807,222.71,222.63,27.55681818]
[1732620694807,44.56948807,222.71,222.63,32.04841818]
[1732620695000,44.56948807,222.71,222.53,49.56948807]
[1732620695001,5.0,222.46,222.24,14.88936988]
[1732620695224,5.0,222.65,222.39,4.97828485]
[1732620695423,5.0,222.65,222.33,32.2491]
[1732620695424,44.56948807,222.64,222.54,44.56948807]
[1732620695723,44.56948807,222.64,222.46,20.71128485]
[1732620695724,44.56948807,222.57,222.46,15.733]
[1732620695908,44.56948807,222.53,222.46,4.4951]
[1732620696302,5.0,222.71,222.46,4.4951]
[1732620696303,44.56948807,222.55,222.46,4.8071132]
[1732620696541,44.56948807,222.65,222.54,44.56948807]
[1732620696820,4.4878,222.83,222.57,5.0]
[1732620697031,44.56948807,222.77,222.67,44.56948807]
[1732620697203,44.56948807,222.75,222.66,4.4911]
[1732620697598,44.56948807,222.75,222.64,4.4915]
[1732620697599,44.56948807,222.71,222.64,4.4915]
[1732620698121,44.56948807,222.71,222.55,32.2491]
[1732620698122,44.56948807,222.71,222.61,44.56948807]
[1732620698502,4.4873,222.85,222.69,44.56948807]
[1732620698709,44.56948807,222.8,222.69,44.56948807]
[1732620699001,5.0,222.93,222.77,4.4889]
[1732620699002,44.56948807,222.84,222.77,4.4889]
[1732620699427,44.56948807,222.86,222.77,49.05838807]
[1732620699634,44.56948807,222.82,222.74,4.4893]
[1732620699933,44.56948807,222.88,222.79,44.56948807]
[1732620700148,44.56948807,222.97,222.81,44.56948807]
[1732620700149,44.56948807,222.9,222.81,44.56948807]
[1732620700308,44.56948807,222.86,222.77,44.56948807]
[1732620700807,9.4856,222.94,222.74,60.28258807]
[1732620700808,44.56948807,222.84,222.74,60.28258807]
[1732620701008,44.56948807,222.84,222.76,44.56948807]
[1732620701221,44.56948807,222.77,222.56,4.4931]
[1732620701427,44.56948807,222.71,222.61,44.56948807]
[1732620701605,44.56948807,222.73,222.63,44.56948807]
[1732620701810,44.56948807,222.75,222.67,44.56948807]
[1732620702013,44.56948807,222.7,222.61,44.56948807]
[1732620702207,44.56948807,222.64,222.54,44.56948807]
[1732620702509,5.0,222.74,222.53,54.54777292]
[1732620702715,44.56948807,222.72,222.63,44.56948807]
[1732620702914,44.56948807,222.72,222.53,44.56948807]
[1732620702915,20.0,222.82,222.68,44.56948807]
[1732620703131,44.56948807,222.7,222.6,32.2991]
[1732620703324,44.56948807,222.7,222.6,44.56948807]
[1732620703705,44.56948807,222.7,222.6,49.06168807]
[1732620703906,44.56948807,222.72,222.62,44.56948807]
[1732620704212,44.56948807,222.74,222.66,44.56948807]
[1732620704411,44.56948807,222.76,222.66,44.56948807]
[1732620704611,44.56948807,222.76,222.6,4.4922]
[1732620704612,44.56948807,222.82,222.74,44.56948807]
[1732620704828,44.56948807,222.84,222.76,44.56948807]
[1732620705334,44.56948807,222.9,222.82,44.56948807]
[1732620705534,44.56948807,222.9,222.75,44.56948807]
[1732620705535,44.56948807,222.94,222.86,44.56948807]
[1732620705710,44.56948807,222.94,222.78,4.97828485]
[1732620705711,5.0,223.02,222.79,5.0]
[1732620706027,5.0,223.02,222.7,32.2991]
[1732620706028,5.0,222.94,222.73,20.0]
[1732620706206,5.0,222.89,222.7,32.2991]
[1732620706402,5.0,222.93,222.7,32.2991]
[1732620706403,5.0,222.86,222.7,32.2991]
[1732620706620,5.0,222.91,222.7,32.2991]
[1732620706621,5.0,222.88,222.7,32.2991]
[1732620706923,5.0,222.91,222.74,44.56948807]
[1732620706924,44.56948807,222.81,222.74,44.56948807]
[1732620707130,44.56948807,222.83,222.74,49.05888807]
[1732620707314,44.56948807,222.79,222.62,15.7217]
[1732620707513,44.56948807,222.75,222.66,44.56948807]
[1732620707923,44.56948807,222.67,222.58,49.06218807]
[1732620708132,5.0,222.76,222.6,44.56948807]
[1732620708133,44.56948807,222.69,222.6,44.56948807]
[1732620708429,44.56948807,222.67,222.58,44.56948807]
[1732620708633,5.0,222.73,222.56,4.493]
[1732620708813,44.56948807,222.68,222.6,44.56948807]
[1732620709010,44.56948807,222.62,222.52,49.06328807]
[1732620709211,44.56948807,222.68,222.59,44.56948807]
[1732620709414,20.0,222.71,222.51,30.3491]
[1732620709712,20.0,222.71,222.5,4.4942]
[1732620710109,5.41683575,222.7,222.5,4.4942]
[1732620710316,5.41683575,222.7,222.5,5.0]
[1732620710614,44.56948807,222.64,222.54,44.56948807]
[1732620710808,15.7133,222.74,222.56,44.56948807]
[1732620711009,44.56948807,222.68,222.6,44.56948807]
[1732620711213,44.56948807,222.7,222.62,44.56948807]
[1732620711428,44.56948807,222.7,222.52,11.2345]
[1732620711429,5.0,222.72,222.52,11.5465132]
[1732620711737,4.4887,222.78,222.6,44.56948807]
[1732620711738,44.56948807,222.69,222.6,44.56948807]
[1732620712710,44.56948807,222.73,222.64,44.56948807]
[1732620712911,44.56948807,222.72,222.63,44.56948807]
[1732620713112,44.56948807,222.66,222.57,44.56948807]
[1732620713315,44.56948807,222.68,222.61,44.56948807]
[1732620713623,44.56948807,222.72,222.65,44.56948807]
[1732620713821,44.56948807,222.74,222.65,44.56948807]
[1732620714126,44.56948807,222.7,222.61,44.56948807]
[1732620714445,15.707,222.83,222.63,44.56948807]
[1732620714446,44.56948807,222.72,222.63,44.56948807]
[1732620714743,44.56948807,222.66,222.57,44.56948807]
[1732620714915,44.56948807,222.59,222.52,0.3120132]
[1732620715116,44.56948807,222.58,222.52,0.3120132]
[1732620715443,44.56948807,222.56,222.52,0.3120132]
[1732620715645,44.56948807,222.59,222.52,44.88150127]
[1732620715943,44.56948807,222.61,222.52,49.37530127]
[1732620716146,44.56948807,222.61,222.52,44.88150127]
[1732620716439,44.56948807,222.63,222.54,44.56948807]
[1732620716641,44.56948807,222.61,222.52,0.3120132]
[1732620716815,44.56948807,222.57,222.52,0.3120132]
[1732620717418,44.56948807,222.59,222.52,0.3120132]
[1732620718036,44.56948807,222.61,222.53,44.56948807]
[1732620718918,44.56948807,222.59,222.52,1.33920818]
[1732620719118,44.56948807,222.59,222.52,0.3120132]
[1732620719323,44.56948807,222.61,222.54,44.56948807]
[1732620719625,44.56948807,222.61,222.52,44.88150127]
[1732620719837,44.56948807,222.63,222.54,44.56948807]
[1732620720041,44.56948807,222.64,222.56,44.56948807]
[1732620720339,5.0,222.8,222.55,24.97828485]
[1732620720559,5.0,222.9,222.64,4.97828485]
[1732620720730,15.6999,222.93,222.68,4.97828485]
[1732620721038,4.4839,223.02,222.76,20.0]
[1732620721217,11.2097,223.02,222.8,20.0]
[1732620721418,11.2097,223.02,222.77,25.68948485]
[1732620721419,44.56948807,222.82,222.77,4.4889]
[1732620721744,44.56948807,222.97,222.7,4.4902]
[1732620721745,44.56948807,222.78,222.7,4.4902]
[1732620721920,44.56948807,222.72,222.62,4.4919]
[1732620722117,5.0,222.73,222.55,44.56948807]
[1732620722315,44.56948807,222.64,222.55,44.56948807]
[1732620722658,44.56948807,222.71,222.61,44.56948807]
[1732620722934,44.56948807,222.71,222.53,44.56948807]
[1732620722935,44.56948807,222.81,222.7,44.56948807]
[1732620723135,44.56948807,222.85,222.75,49.05868807]
[1732620723345,44.56948807,222.81,222.68,11.2263]
[1732620723523,4.4869,222.87,222.71,44.56948807]
[1732620723725,44.56948807,222.84,222.75,44.56948807]
[1732620723920,5.0,222.96,222.65,4.4913]
[1732620723921,44.56948807,222.76,222.65,4.4913]
[1732620724119,44.56948807,222.71,222.64,49.06088807]
[1732620724416,44.56948807,222.71,222.48,13.261]
[1732620724417,44.56948807,222.67,222.59,44.56948807]
[1732620724643,15.7042,222.87,222.55,11.2333]
[1732620724644,44.56948807,222.69,222.61,44.56948807]
[1732620724814,44.56948807,222.75,222.65,44.56948807]
[1732620725012,44.56948807,222.73,222.65,44.56948807]
[1732620725214,44.56948807,222.67,222.53,4.4937]
[1732620725444,44.56948807,222.62,222.53,4.4937]
[1732620725627,44.56948807,222.66,222.56,44.56948807]
[1732620725817,9.4885,222.79,222.64,44.56948807]
[1732620726014,4.4885,222.79,222.64,44.56948807]
[1732620726218,44.56948807,222.66,222.53,4.4937]
[1732620726414,44.56948807,222.75,222.54,4.97828485]
[1732620726639,20.0,222.76,222.53,20.70638485]
[1732620726849,5.0,222.46,222.43,1.367985]
[1732620727022,8.8716,222.66,222.43,1.367985]
[1732620727023,5.0,222.44,222.43,1.367985]
[1732620727220,5.0,222.46,222.43,1.367985]
[1732620727453,8.8716,222.66,222.43,1.367985]
[1732620727454,5.0,222.56,222.43,1.367985]
[1732620727628,82.28021568,222.45,222.37,44.56948807]
[1732620727829,64.37728777,222.38,222.35,49.8752336]
[1732620728053,39.75069766,222.37,222.35,49.8752336]
[1732620728252,19.87534882,222.36,222.35,5.30574553]
[1732620728421,91.28363068,222.36,222.33,44.56948807]
[1732620728742,51.50276586,222.36,222.35,44.56948807]
[1732620728926,44.56948807,222.47,222.36,23.776884]
[1732620729128,5.0,222.42,222.26,0.610076]
[1732620729326,44.56948807,222.39,222.29,44.56948807]
[1732620729640,5.0,222.35,222.26,0.610076]
[1732620729816,5.0,222.42,222.26,0.610076]
[1732620729817,5.0,222.31,222.26,0.610076]
[1732620730018,0.67441059,222.32,222.26,0.610076]
[1732620730237,5.0,222.27,222.26,0.610076]
[1732620730724,10.0,222.27,222.26,0.610076]
[1732620731043,0.67441059,222.28,222.26,0.610076]
[1732620731232,5.0,222.27,222.26,0.610076]
[1732620731543,0.67441059,222.28,222.26,0.610076]
[1732620731745,5.0,222.33,222.26,45.17956407]
[1732620731925,5.0,222.39,222.31,44.56948807]
[1732620732250,5.0,222.52,222.31,44.56948807]
[1732620732251,5.0,222.47,222.37,44.56948807]
[1732620732543,5.0,222.43,222.4,44.56948807]
[1732620732750,10.0,222.36,222.29,44.56948807]
[1732620732925,5.0,222.41,222.35,44.56948807]
[1732620733126,5.0,222.39,222.38,44.56948807]
[1732620733436,5.0,222.37,222.31,44.56948807]
[1732620733634,5.67441059,222.39,222.31,44.56948807]
[1732620733820,5.67441059,222.39,222.26,0.610076]
[1732620733821,5.0,222.31,222.26,0.610076]
[1732620734026,5.0,222.35,222.27,44.56948807]
[1732620734362,5.0,222.35,222.29,44.56948807]
[1732620734363,5.0,222.32,222.29,44.56948807]
[1732620734648,5.0,222.32,222.26,0.610076]
[1732620734649,5.0,222.29,222.26,0.610076]
[1732620734830,0.67441059,222.31,222.26,0.610076]
[1732620734831,0.67441059,222.28,222.26,0.610076]
[1732620735161,0.67441059,222.27,222.26,0.610076]
[1732620735323,5.0,222.27,222.26,0.610076]
[1732620735527,0.67441059,222.28,222.26,0.610076]
[1732620735731,5.0,222.28,222.26,0.610076]
[1732620735924,5.67441059,222.27,222.26,0.610076]
[1732620736247,10.67441059,222.27,222.26,0.610076]
[1732620736737,5.67441059,222.27,222.26,0.610076]
[1732620736941,5.0,222.27,222.26,0.610076]
[1732620737125,10.0,222.27,222.26,0.610076]
[1732620737331,70.0,222.52,222.26,0.610076]
[1732620737332,5.0,222.34,222.26,0.610076]
[1732620737533,5.0,222.39,222.32,44.56948807]
[1732620737838,5.0,222.35,222.26,0.610076]
[1732620738034,10.0,222.29,222.26,0.610076]
[1732620738234,10.0,222.27,222.26,0.610076]
[1732620738435,54.56948807,222.27,222.26,0.610076]
[1732620739149,60.24389866,222.27,222.26,0.610076]
[1732620739442,20.0,222.21,222.2,1.0]
[1732620739650,15.67441059,222.21,222.2,1.0]
[1732620739830,109.81338673,222.21,222.2,1.0]
[1732620740146,10.0,222.16,222.15,10.0]
[1732620740347,10.0,222.16,222.02,4.5039]
[1732620740348,59.56948807,222.11,221.84,10.0]
[1732620740527,60.24389866,222.11,222.01,44.56948807]
[1732620740731,60.24389866,222.11,221.79,45.2734]
[1732620740732,65.24389866,222.11,221.94,44.83984807]
[1732620740955,65.24389866,222.11,221.96,44.56948807]
[1732620741138,109.81338673,222.11,221.94,44.83984807]
[1732620741339,14.5022,222.11,221.94,0.27036]
[1732620741659,5.67441059,222.11,221.94,0.27036]
[1732620741833,10.67441059,222.11,221.94,0.27036]
[1732620742028,10.67441059,222.11,221.99,44.56948807]
[1732620742431,55.24389866,222.11,222.01,4.5041]
[1732620742637,10.67441059,222.11,222.05,44.56948807]
[1732620742850,10.67441059,222.11,222.01,44.56948807]
[1732620742851,55.24389866,222.11,222.01,44.56948807]
[1732620743061,55.24389866,222.11,221.94,0.27036]
[1732620743232,55.24389866,222.11,221.99,4.5045]
[1732620743559,104.31558673,222.11,221.95,4.5053]
[1732620743737,10.0,222.11,221.99,44.56948807]
[1732620744055,10.0,222.11,222.02,44.56948807]
[1732620744351,10.67441059,222.11,222.06,44.56948807]
[1732620744658,10.0,222.11,222.07,4.503]
[1732620745157,10.0,222.11,222.06,44.56948807]
[1732620745158,10.0,222.11,222.06,49.07258807]
[1732620745453,5.0,222.23,222.13,20.0]
[1732620745454,5.0,222.21,222.13,20.0]
[1732620745661,5.0,222.29,222.2,89.13897614]
[1732620745876,5.0,222.37,222.28,44.56948807]
[1732620746154,5.0,222.39,222.27,20.0]
[1732620746358,5.0,222.37,222.13,70.0]
[1732620746653,10.0,222.28,222.01,115.2734]
[1732620746862,5.0,222.21,222.01,45.2734]
[1732620747036,10.0,222.27,222.01,115.2734]
[1732620747235,5.0,222.27,222.01,45.2734]
[1732620747454,5.0,222.31,222.26,44.56948807]
[1732620747635,5.67441059,222.3,222.29,44.56948807]
[1732620747841,10.0,222.3,222.29,44.56948807]
[1732620748051,5.0,222.26,222.25,44.56948807]
[1732620748265,5.0,222.21,222.13,20.0]
[1732620748460,5.0,222.26,222.17,20.0]
[1732620748658,5.0,222.27,222.12,0.12549]
[1732620748847,0.67441059,222.32,222.12,0.12549]
[1732620748848,5.0,222.25,222.17,20.0]
[1732620749054,5.0,222.25,222.12,23.902374]
[1732620749377,10.67441059,222.24,222.23,44.56948807]
[1732620749572,5.0,222.29,222.23,44.56948807]
[1732620749878,5.0,222.35,222.28,44.56948807]
[1732620750170,0.67441059,222.43,222.34,44.56948807]
[1732620750348,5.0,222.46,222.26,0.12549]
[1732620750544,5.0,222.47,222.45,44.56948807]
[1732620750747,5.0,222.5,222.3,0.12549]
[1732620750949,5.0,222.48,222.44,44.56948807]
[1732620751148,5.0,222.43,222.42,44.56948807]
[1732620751574,5.0,222.42,222.38,44.56948807]
[1732620751912,5.0,222.51,222.4,44.56948807]
[1732620752058,5.0,222.51,222.37,12.8307]
[1732620752059,5.0,222.51,222.49,44.56948807]
[1732620752373,5.0,222.53,222.5,44.56948807]
[1732620752673,5.0,222.68,222.44,70.0]
[1732620752874,17.988119,222.66,222.5,22.42573559]
[1732620753084,17.988119,222.66,222.48,32.4427]
[1732620753085,17.988119,222.66,222.55,20.0]
[1732620753370,5.0,222.77,222.63,20.0]
[1732620753575,5.0,222.79,222.64,0.12549]
[1732620753780,5.0,222.83,222.78,44.56948807]
[1732620753973,5.0,222.85,222.83,44.56948807]
[1732620754281,5.0,222.98,222.83,44.56948807]
[1732620754282,5.0,222.89,222.83,44.56948807]
[1732620754575,5.0,223.03,222.88,44.56948807]
[1732620754576,5.0,222.91,222.88,44.56948807]
[1732620754781,5.0,222.89,222.88,44.56948807]
[1732620754966,5.0,222.91,222.88,44.56948807]
[1732620755278,5.0,223.03,222.91,20.0]
[1732620755454,5.0,223.02,222.91,20.0]
[1732620755662,0.4212305,223.06,223.01,44.56948807]
[1732620755988,44.56948807,223.23,223.12,5.0]
[1732620756164,44.56948807,223.27,223.19,5.0]
[1732620756368,44.56948807,223.29,223.2,44.56948807]
[1732620756587,44.56948807,223.32,223.23,44.56948807]
[1732620756892,44.56948807,223.38,223.29,44.56948807]
[1732620757188,44.56948807,223.42,223.33,44.56948807]
[1732620757360,15.6619,223.47,223.24,95.00378633]
[1732620757361,44.56948807,223.38,223.27,5.0]
[1732620757563,44.56948807,223.34,223.25,5.0]
[1732620757770,44.56948807,223.28,223.24,95.00378633]
[1732620757963,44.56948807,223.26,223.24,95.00378633]
[1732620758163,44.56948807,223.28,223.24,95.00378633]
[1732620758381,60.23558807,223.41,223.24,95.00378633]
[1732620758382,44.56948807,223.34,223.29,5.0]
[1732620758790,44.56948807,223.42,223.34,5.0]
[1732620758964,44.56948807,223.48,223.39,5.0]
[1732620759166,44.56948807,223.46,223.38,44.56948807]
[1732620759487,44.56948807,223.4,223.33,5.0]
[1732620759791,4.4751,223.46,223.4,5.0]
[1732620759792,44.56948807,223.46,223.4,5.0]
[1732620759973,44.56948807,223.48,223.45,5.0]
[1732620760166,45.09847457,223.5,223.44,5.0]
[1732620760374,45.09847457,223.5,223.3,44.56948807]
[1732620760375,44.56948807,223.46,223.38,44.56948807]
[1732620760581,44.56948807,223.44,223.37,5.0]
[1732620760794,0.5289865,223.5,223.43,49.56948807]
[1732620761090,0.5289865,223.5,223.32,4.4776]
[1732620761091,0.5289865,223.5,223.49,10.0]
[1732620761280,0.5289865,223.5,223.46,5.0]
[1732620761590,45.09847457,223.5,223.47,5.0]
[1732620761768,45.09847457,223.5,223.44,5.0]
[1732620761972,45.09847457,223.5,223.39,5.0]
[1732620761973,0.5289865,223.5,223.49,5.0]
[1732620762483,0.5289865,223.5,223.49,49.56948807]
[1732620762685,0.5289865,223.5,223.49,44.56948807]
[1732620762888,0.5289865,223.5,223.47,5.0]
[1732620763063,0.5289865,223.5,223.49,5.0]
[1732620763480,0.5289865,223.5,223.49,10.0]
[1732620763689,0.5289865,223.5,223.49,5.0]
[1732620763873,0.5289865,223.5,223.49,9.4744]
[1732620764277,0.5289865,223.5,223.49,49.56948807]
[1732620764791,0.5289865,223.5,223.49,99.13897614]
[1732620764996,0.5289865,223.5,223.49,5.0]
[1732620765568,0.5289865,223.5,223.49,10.0]
[1732620765784,0.5289865,223.5,223.49,5.0]
[1732620765982,0.5289865,223.5,223.49,54.56948807]
[1732620766190,49.04028807,223.68,223.61,5.0]
[1732620766375,49.04028807,223.68,223.5,4.4742]
[1732620766376,49.03978807,223.7,223.65,5.0]
[1732620766575,49.03978807,223.7,223.62,49.56948807]
[1732620766576,44.56948807,223.7,223.67,5.0]
[1732620767096,44.56948807,223.8,223.75,5.0]
[1732620767270,12.8439312,223.97,223.79,5.0]
[1732620767481,12.8439312,223.97,223.84,5.0]
[1732620767482,44.56948807,223.87,223.84,5.0]
[1732620767681,44.56948807,223.91,223.88,5.0]
[1732620767880,44.56948807,223.89,223.86,5.0]
[1732620768084,44.56948807,223.87,223.86,5.0]
[1732620768373,12.8439312,223.97,223.94,10.0]
[1732620768374,0.3978312,223.97,223.94,10.0]
[1732620768700,0.3978312,223.97,223.96,5.0]
[1732620769197,0.3978312,223.97,223.96,54.56948807]
[1732620769598,0.3978312,223.97,223.96,10.0]
[1732620769772,44.96731927,223.97,223.86,5.0]
[1732620769967,44.96731927,223.97,223.72,5.0]
[1732620769968,16.0250312,223.97,223.83,5.0]
[1732620770195,44.56948807,223.84,223.72,5.0]
[1732620770399,20.0,223.94,223.77,5.0]
[1732620770702,44.56948807,223.89,223.82,5.0]
[1732620771014,44.56948807,223.89,223.8,5.0]
[1732620771015,23.776884,223.88,223.8,5.0]
[1732620771180,23.776884,223.88,223.81,44.56948807]
[1732620771498,23.776884,223.88,223.79,5.0]
[1732620771499,49.43231927,223.97,223.94,5.0]
[1732620771696,49.43231927,223.97,223.96,5.0]
[1732620771697,0.3978312,223.97,223.96,5.0]
[1732620771896,4.8626312,223.97,223.93,5.0]
[1732620772204,4.8626312,223.97,223.96,10.0]
[1732620772205,0.3978312,223.97,223.96,10.0]
[1732620772380,0.3978312,223.97,223.94,5.0]
[1732620772699,49.03448807,223.96,223.86,10.0]
[1732620772884,44.56948807,223.94,223.89,5.0]
[1732620773083,0.3978312,223.97,223.96,10.0]
[1732620773295,0.3978312,223.97,223.96,49.56948807]
[1732620773601,0.3978312,223.97,223.96,54.56948807]
[1732620773977,44.56948807,224.15,224.11,5.0]
[1732620774182,44.56948807,224.2,224.15,5.0]
[1732620774483,15.6089,224.23,224.12,5.0]
[1732620774484,44.56948807,224.16,224.12,5.0]
[1732620774885,15.6089,224.23,224.14,5.0]
[1732620774886,44.56948807,224.21,224.14,5.0]
[1732620775094,15.6089,224.23,224.11,5.0]
[1732620775095,44.56948807,224.19,224.11,5.0]
[1732620775407,44.56948807,224.19,223.96,49.56948807]
[1732620775408,44.56948807,224.21,224.17,5.0]
[1732620775595,4.4603,224.2,224.17,5.0]
[1732620775802,4.4603,224.2,224.18,5.0]
[1732620776104,49.02878807,224.25,224.2,5.0]
[1732620776302,49.02878807,224.25,224.16,49.56948807]
[1732620776713,49.02878807,224.25,224.19,5.0]
[1732620776915,4.4588,224.28,224.27,5.0]
[1732620777215,4.4588,224.28,224.24,5.0]
[1732620777389,4.4588,224.28,224.23,5.0]
[1732620777716,0.8467874,224.32,224.29,5.0]
[1732620778006,0.8467874,224.32,224.31,10.0]
[1732620778212,0.8467874,224.32,224.18,49.56948807]
[1732620778213,4.4581,224.31,224.28,5.0]
[1732620778395,0.8467874,224.32,224.31,5.0]
[1732620778591,0.8467874,224.32,224.31,10.0]
[1732620778791,0.8467874,224.32,224.31,54.56948807]
[1732620779190,0.8467874,224.32,224.29,49.56948807]
[1732620779389,5.3047874,224.32,224.27,5.0]
[1732620779705,5.3047874,224.32,224.26,5.0]
[1732620779907,44.56948807,224.3,224.23,10.0]
[1732620780091,0.8467874,224.32,224.29,10.0]
[1732620780291,49.02758807,224.31,224.24,5.0]
[1732620780496,49.02758807,224.31,224.18,5.0]
[1732620780497,20.0,224.29,224.18,5.0]
[1732620780687,44.56948807,224.23,224.19,5.0]
[1732620780917,44.56948807,224.28,224.25,5.0]
[1732620781093,0.8467874,224.32,224.29,5.0]
[1732620781292,4.456,224.42,224.31,15.0]
[1732620781607,44.56948807,224.45,224.43,5.0]
[1732620781809,4.4551,224.46,224.34,5.0]
[1732620781998,4.4551,224.46,224.41,5.0]
[1732620782207,4.4543,224.5,224.44,5.0]
[1732620782517,4.4543,224.5,224.26,5.0]
[1732620782699,5.0,224.47,224.29,5.0]
[1732620783017,4.4543,224.5,224.12,31.1633]
[1732620783018,44.56948807,224.39,224.37,5.0]
[1732620783321,15.5901,224.5,224.44,5.0]
[1732620783520,39.3811,224.62,224.35,5.0]
[1732620783521,5.0,224.55,224.35,5.0]
[1732620783700,5.0,224.51,224.35,5.0]
[1732620783904,5.0,224.48,224.3,5.0]
[1732620784224,15.5859,224.56,224.42,5.0]
[1732620784411,15.5859,224.56,224.49,5.0]
[1732620784412,44.56948807,224.53,224.49,5.0]
[1732620784719,44.56948807,224.51,224.44,5.0]